fUSD/lending_fUSD_20241009
["ID","MTS","AMOUNT","RATE_DAILY","PERIOD"]
[340072415,1728461444032,-189.120189,0.00023922,7]
[340072416,1728461444041,-189.120189,0.00023922,7]
[340072417,1728461444050,-189.120189,0.00023922,7]
[340072418,1728461444059,-189.120189,0.00023922,7]
[340072419,1728461444068,-232.893525,0.00023922,7]
[340072420,1728461444077,-232.893525,0.00023922,7]
[340072421,1728461444086,-232.893525,0.00023922,7]
[340072422,1728461444095,-232.893525,0.00023922,7]
[340072423,1728461444105,-186.38935698,0.00023935,4]
[340072424,1728461444114,-150.0,0.00024123,4]
[340072425,1728461444123,-1000.0,0.00024154,2]
[340072426,1728461444133,-186.38935698,0.00024168,4]
[340072427,1728461444144,-1010.58,0.000242,2]
[340072428,1728461444153,-152.0,0.00024229,4]
[340072429,1728461444163,-186.38935698,0.00024401,4]
[340072430,1728461444172,-150.0,0.0002445,4]
[340072431,1728461444181,-150.0,0.00024567,4]
[340072432,1728461444190,-186.38935698,0.00024634,4]
[340072433,1728461444199,-150.0,0.00024694,2]
[340072434,1728461444209,-150.0,0.00024774,4]
[340072435,1728461444220,-221.050791,0.00024866,2]
[340072436,1728461444229,-186.38935698,0.00024867,4]
[340072437,1728461444247,-921.66,0.00024932,2]
[340072438,1728461444255,-534.59,0.00024932,2]
[340072439,1728461444264,-534.59,0.00024932,2]
[340072440,1728461444273,-534.59,0.00024932,2]
[340072441,1728461444282,-534.59,0.00024932,2]
[340072442,1728461444292,-34852.71911698,0.00025,30]
[340072443,1728461444301,-5064.35158988,0.00025,2]
[340072444,1728461444310,-150.0,0.00025,2]
[340072445,1728461444319,-1779.754274,0.00025,2]
[340072446,1728461444328,-189.120189,0.00025,7]
[340072447,1728461444338,-189.120189,0.00025,7]
[340072448,1728461444346,-232.893525,0.00025,7]
[340072449,1728461444356,-232.893525,0.00025,7]
[340072450,1728461444364,-150.0,0.00025011,4]
[340072451,1728461444373,-150.0,0.00025057,4]
[340072452,1728461444477,-186.38935698,0.000251,4]
[340072453,1728461444488,-750.0,0.00025197,2]
[340072454,1728461444498,-3000.0,0.000252,2]
[340072455,1728461444509,-1999.704236,0.000252,2]
[340072456,1728461444520,-152.0,0.00025202,5]
[340072457,1728461444531,-186.38935698,0.00025333,4]
[340072458,1728461444544,-278.34973236,0.00025394,2]
[340072459,1728461444556,-150.0,0.00025454,4]
[340072460,1728461444565,-186.38935698,0.00025567,4]
[340072461,1728461444575,-167.41,0.00025607,2]
[340072462,1728461444587,-150.0,0.00025665,4]
[340072463,1728461444596,-150.0,0.00025667,2]
[340072464,1728461444606,-186.38935698,0.000258,4]
[340072465,1728461444615,-150.0,0.000258,4]
[340072466,1728461444625,-150.0,0.00025898,4]
[340072467,1728461444635,-318.49,0.00025956,2]
[340072468,1728461444646,-288.65,0.00026,2]
[340072469,1728461444656,-186.38935698,0.00026033,4]
[340072470,1728461444666,-150.0,0.00026064,2]
[340072471,1728461444676,-152.0,0.00026175,6]
[340072472,1728461444685,-186.38935698,0.00026266,4]
[340072473,1728461444699,-150.0,0.00026272,4]
[340072474,1728461444709,-150.0,0.00026312,4]
[340072475,1728461444718,-150.0,0.00026342,4]
[340072476,1728461444730,-5000.0,0.00026463,7]
[340072477,1728461444743,-186.38935698,0.00026499,4]
[340072478,1728461444752,-152.66262888,0.000265,30]
[340072479,1728461444762,-186.38935698,0.00026732,4]
[340072480,1728461444773,-150.0,0.00026786,4]
[340072481,1728461444783,-1000.0,0.00026838,2]
[340072482,1728461444792,-150.0,0.00026879,4]
[340072483,1728461444802,-186.38935698,0.00026965,4]
[340072484,1728461444813,-1078.87228804,0.00027,7]
[340072485,1728461444822,-3667.617929,0.00027,2]
[340072486,1728461444832,-150.0,0.00027081,4]
[340072487,1728461444842,-152.0,0.00027148,7]
[340072488,1728461444852,-186.38935698,0.00027198,4]
[340072489,1728461444861,-150.0,0.00027229,4]
[340072490,1728461444872,-151.0,0.00027255,2]
[340072491,1728461444883,-189.120189,0.00027368,7]
[340072492,1728461444893,-189.12018,0.00027368,7]
[340072493,1728461444903,-232.893525,0.00027368,7]
[340072494,1728461444915,-232.893525,0.00027368,7]
[340072495,1728461444925,-19902.36544699,0.00027369,2]
[340072496,1728461444934,-221.050791,0.00027371,2]
[340072497,1728461444944,-151.0,0.00027397,7]
[340072498,1728461444955,-151.0,0.00027397,7]
[340072499,1728461444964,-151.0,0.00027397,7]
[340072500,1728461444975,-151.0,0.00027397,7]
[340072501,1728461444985,-151.0,0.00027397,7]
[340072502,1728461444994,-151.0,0.00027397,7]
[340072503,1728461445003,-151.0,0.00027397,7]
[340072504,1728461445013,-151.0,0.00027397,7]
[340072505,1728461445022,-151.0,0.00027397,7]
[340072506,1728461445031,-151.0,0.00027397,7]
[340072507,1728461445041,-155.963033,0.00027397,7]
[340072508,1728461445051,-815.9,0.00027397,10]
[340072509,1728461445060,-186.38935698,0.00027431,7]
[340072510,1728461445070,-150.70853635,0.00027434,2]
[340072511,1728461445079,-150.0,0.00027486,7]
[340072512,1728461445088,-505.32118289,0.000275,2]
[340072513,1728461445097,-186.38935698,0.00027664,7]
[340072514,1728461445106,-150.0,0.00027673,7]
[340072515,1728461445115,-150.0,0.0002785,7]
[340072516,1728461445124,-186.38935698,0.00027897,7]
[340072517,1728461445133,-3000.0,0.000279,2]
[340072518,1728461445142,-1125.0,0.00027937,2]
[340072519,1728461445151,-150.0,0.00028093,7]
[340072520,1728461445160,-150.0,0.00028117,7]
[340072521,1728461445169,-152.0,0.0002812,8]
[340072522,1728461445179,-300.69462367,0.0002812,5]
[340072523,1728461445188,-186.38935698,0.0002813,7]
[340072524,1728461445197,-318.49,0.0002822,2]
[340072525,1728461445207,-186.38935698,0.00028363,7]
[340072526,1728461445216,-150.0,0.00028363,7]
[340072527,1728461445227,-820.78474382,0.00028408,2]
[340072528,1728461445239,-278.34973236,0.0002844,2]
[340072529,1728461445248,-150.0,0.0002856,7]
[340072530,1728461445257,-186.38935698,0.00028596,7]
[340072531,1728461445267,-150.0,0.000287,7]
[340072532,1728461445276,-186.38935698,0.00028829,7]
[340072533,1728461445286,-150.0,0.00029004,7]
[340072534,1728461445295,-186.38935698,0.00029062,7]
[340072535,1728461445305,-164.83289167,0.00029214,2]
[340072536,1728461445315,-186.38935698,0.00029295,7]
[340072537,1728461445324,-150.0,0.00029308,7]
[340072538,1728461445333,-249.05,0.0002938,2]
[340072539,1728461445342,-150.0,0.00029389,7]
[340072540,1728461445351,-150.0,0.00029448,7]
[340072541,1728461445360,-1000.0,0.00029522,2]
[340072542,1728461445370,-186.38935698,0.00029528,7]
[340072543,1728461445379,-186.38935698,0.00029761,7]
[340072544,1728461445389,-221.050791,0.00029877,2]
[340072545,1728461445398,-150.0,0.00029891,7]
[340072546,1728461445407,-44407.21602301,0.000299,2]
[340072547,1728461445418,-150.0,0.00029915,7]
[340072548,1728461445428,-225.09067533,0.0002999,2]
[340072549,1728461445439,-186.38935698,0.00029994,7]
[340072550,1728461445449,-500.0,0.0003,4]
[340072551,1728461445459,-2000.0,0.0003,2]
[340072552,1728461445468,-2000.0,0.0003,2]
[340072553,1728461445478,-167.0,0.0003,2]
[340072554,1728461445488,-3018.0,0.0003,60]
[340072555,1728461445498,-3000.0,0.0003,30]
[340072556,1728461445507,-846.439,0.0003,2]
[340072557,1728461445516,-2000.0,0.0003,2]
[340072558,1728461445526,-10632.38166604,0.0003,2]
[340072559,1728461445535,-15286.54259111,0.0003,2]
[340072560,1728461445543,-1719.94091779,0.0003,2]
[340072561,1728461445552,-1009.78508447,0.0003,2]
[340072562,1728461445562,-2000.0,0.0003,2]
[340072563,1728461445571,-2001.2107,0.0003,2]
[340072564,1728461445580,-177.0,0.0003,2]
[340072565,1728461445590,-186.38935698,0.00030228,7]
[340072566,1728461445600,-150.0,0.00030335,7]
[340072567,1728461445609,-1525.13,0.00030411,2]
[340072568,1728461445619,-423.81,0.00030411,2]
[340072569,1728461445629,-423.81,0.00030411,2]
[340072570,1728461445638,-150.02,0.00030411,2]
[340072571,1728461445647,-820.78474382,0.00030424,2]
[340072572,1728461445657,-186.38935698,0.00030461,7]
[340072573,1728461445667,-318.49,0.00030484,2]
[340072574,1728461445676,-150.0,0.00030522,7]
[340072575,1728461445685,-1500.0,0.00030676,2]
[340072576,1728461445695,-186.38935698,0.00030694,7]
[340072577,1728461445705,-3000.0,0.000307,2]
[340072578,1728461445714,-150.0,0.00030779,7]
[340072579,1728461445724,-150.0,0.00030927,7]
[340072580,1728461445733,-150.0,0.00030927,7]
[340072581,1728461445745,-150.0,0.00030927,7]
[340072582,1728461445754,-150.0,0.00030927,7]
[340072583,1728461445764,-186.38935698,0.00030927,7]
[340072584,1728461445773,-1000.0,0.00031,11]
[340072585,1728461445783,-321.46806246,0.00031,5]
[340072586,1728461445792,-150.0,0.00031027,120]
[340072587,1728461445801,-150.0,0.00031129,7]
[340072588,1728461445811,-186.38935698,0.0003116,7]
[340072589,1728461445821,-1232.52764953,0.000312,2]
[340072590,1728461445830,-27036.48101569,0.0003121,2]
[340072591,1728461445840,-150.0,0.00031222,7]
[340072592,1728461445849,-847.0,0.0003137,2]
[340072593,1728461445858,-186.38935698,0.00031393,7]
[340072594,1728461445868,-150.43,0.0003142,2]
[340072595,1728461445877,-278.34973236,0.00031486,15]
[340072596,1728461445886,-2026.1629232,0.000315,30]
[340072597,1728461445895,-198.7526,0.000315,120]
[340072598,1728461445905,-186.38935698,0.00031626,7]
[340072599,1728461445914,-150.0,0.00031666,7]
[340072600,1728461445923,-2000.0,0.00031666,120]
[340072601,1728461445932,-461.234851,0.00031666,120]
[340072602,1728461445941,-202.029405,0.00031666,120]
[340072603,1728461445950,-150.0,0.00031736,7]
[340072604,1728461445960,-186.38935698,0.00031859,7]
[340072605,1728461445969,-200.0,0.00032,120]
[340072606,1728461445978,-1471.485153,0.00032,120]
[340072607,1728461445987,-1208.79688251,0.00032,120]
[340072608,1728461445996,-178.16772426,0.00032,4]
[340072609,1728461446005,-186.38935698,0.00032092,7]
[340072610,1728461446014,-150.0,0.0003211,7]
[340072611,1728461446024,-1000.0,0.00032206,2]
[340072612,1728461446034,-152.0991,0.000323,120]
[340072613,1728461446043,-150.0,0.00032313,2]
[340072614,1728461446052,-3481.78784037,0.00032313,30]
[340072615,1728461446062,-169656.25698037,0.00032313,2]
[340072616,1728461446071,-5163.6752887,0.00032313,30]
[340072617,1728461446080,-6857.94541384,0.00032313,30]
[340072618,1728461446089,-106966.86766454,0.00032313,30]
[340072619,1728461446098,-124591.13199667,0.00032313,2]
[340072620,1728461446107,-54531.59161811,0.00032313,2]
[340072621,1728461446116,-166329.88884594,0.00032313,2]
[340072622,1728461446126,-150612.09083924,0.00032313,2]
[340072623,1728461446135,-105878.05416454,0.00032313,2]
[340072630,1728462308130,149595.54,0.00011,2]
[340072631,1728462308168,6056.65985092,0.00011,2]
[340072646,1728462631886,-1736.0,0.00021,3]
[340072647,1728462631900,-694.27768546,0.00022066,2]
[340072648,1728462631914,-1711.2103,0.00022166,2]
[340072649,1728462631927,-10637.04465408,0.00022266,2]
[340072650,1728462631940,-694.27768546,0.00022383,2]
[340072651,1728462631953,-694.27768546,0.000227,2]
[340072652,1728462631964,-1716.94468805,0.000227,2]
[340072653,1728462631978,-150.0,0.000229,2]
[340072654,1728462631990,-1133.75,0.000229,2]
[340072655,1728462632003,-8851.87117546,0.00023683,2]
[340072656,1728462632015,-252.59,0.00025582,2]
[340072657,1728462632028,-1690.270731,0.00026262,120]
[340072658,1728462632040,-151.0,0.00026383,2]
[340072659,1728462632053,-2259.61,0.00026978,2]
[340072660,1728462632065,-150.0,0.00027,2]
[340072661,1728462632077,-644.84,0.00027094,2]
[340072662,1728462632090,-843.01,0.0002716,2]
[340072663,1728462632102,-4549.92778348,0.00027167,2]
[340072665,1728462632117,-649.35221652,0.00027167,2]
[340072666,1728462632129,-250.0,0.00027177,2]
[340072667,1728462632142,-250.0,0.00027234,2]
[340072668,1728462632154,-157.49,0.00027291,2]
[340072669,1728462632167,-464.17,0.00027293,2]
[340072670,1728462632181,-143.02672642,0.00027405,2]
[340072671,1728462632196,-99.75327358,0.00027405,2]
[340072672,1728462632209,-220.5039753,0.00027405,2]
[340072673,1728462632226,-229.4960247,0.00027405,2]
[340072674,1728462632239,-114.83805809,0.000277,2]
[340072799,1728462640001,-1137.7,0.000277,2]
[340072800,1728462640058,-541.68735,0.000277,2]
[340072854,1728462954992,250.0,0.00011,2]
[340072864,1728463831976,-2482.282,0.00021,2]
[340072867,1728463831985,-349.25403758,0.000211,3]
[340072872,1728463834893,-1230.0,0.000211,3]
[340072873,1728463834905,-106.74596242,0.000211,3]
[340072874,1728463834917,-754.36762999,0.00021971,2]
[340072875,1728463834926,-150.0,0.00021971,2]
[340072876,1728463834935,-22457.10593847,0.00021972,2]
[340072877,1728463834951,-19903.58630826,0.00021972,2]
[340072878,1728463835009,-297.04785907,0.00021972,2]
[340072879,1728463835022,-1055.69681033,0.00021972,2]
[340072977,1728463838303,-4033.77844113,0.00021972,2]
[340072978,1728463838313,-5743.62282954,0.00021972,2]
[340073009,1728463843333,-5451.00076751,0.00021972,2]
[340073012,1728463846231,-280.1972455,0.00021972,2]
[340073038,1728465032168,-300.0,0.00019725,2]
[340073039,1728465032178,-929.0,0.000212,3]
[340073040,1728465032189,-399.519375,0.00021217,2]
[340073041,1728465032199,-157.49,0.00021317,2]
[340073042,1728465032208,-150.0,0.00021317,2]
[340073043,1728465032217,-1381.69952979,0.00021317,2]
[340073047,1728465038517,-2886.11047021,0.00021317,2]
[340073048,1728465038530,-250.0,0.00021317,2]
[340073049,1728465038539,-250.0,0.00021317,2]
[340073050,1728465038549,-1053.59000794,0.00021317,2]
[340073051,1728465038559,-79328.22737875,0.00021483,2]
[340073052,1728465038570,-5426.8,0.00021483,2]
[340073053,1728465038579,-4562.67,0.00021483,2]
[340073054,1728465038589,-420.0,0.00021484,2]
[340073055,1728465038602,-262.82,0.00021487,2]
[340073056,1728465038612,-150.99,0.00021487,2]
[340073057,1728465038622,-2590.96,0.00021487,2]
[340073058,1728465038632,-604.12,0.00021487,2]
[340073059,1728465038641,-499.99,0.00021487,2]
[340073060,1728465038651,-9999.99,0.00021663,2]
[340073061,1728465038661,-3806.0061,0.00021966,2]
[340073062,1728465038671,-296.12,0.00022079,2]
[340073063,1728465038680,-169.58,0.00022137,30]
[340073064,1728465038690,-223.64,0.00022382,2]
[340073065,1728465038700,-150.49,0.00022686,2]
[340073066,1728465038710,-196.38,0.00023,2]
[340073067,1728465038719,-587.0,0.00023401,2]
[340073068,1728465038729,-3302.66,0.00023495,2]
[340073070,1728465038739,-3000.0,0.000236,2]
[340073072,1728465038748,-474.52,0.00023788,2]
[340073074,1728465038757,-2443.47,0.00023966,2]
[340073075,1728465038766,-626.459,0.00024084,2]
[340073076,1728465038776,-1299.005,0.00024084,2]
[340073077,1728465038785,-449.054,0.00024084,2]
[340073078,1728465038794,-811.829,0.00024084,2]
[340073079,1728465038804,-3366.509,0.00024084,2]
[340073080,1728465038814,-1913.256,0.00024084,2]
[340073081,1728465038824,-557.025,0.00024084,2]
[340073082,1728465038833,-808.0,0.00024084,2]
[340073083,1728465038842,-1910.0,0.00024084,2]
[340073084,1728465038853,-150.664,0.00024084,2]
[340073085,1728465038862,-5885.224,0.00024084,2]
[340073086,1728465038870,-1149.579,0.00024084,2]
[340073087,1728465038879,-8925.722,0.00024084,2]
[340073088,1728465038889,-296.12,0.00024343,2]
[340073089,1728465038899,-167.00983947,0.00024708,2]
[340073090,1728465038908,-1000.0,0.00024808,2]
[340073091,1728465038918,-404.0,0.00025488,2]
[340073092,1728465038927,-157.49,0.0002558,2]
[340073093,1728465038936,-3000.0,0.000263,2]
[340073094,1728465038945,-500.0,0.000263,2]
[340073095,1728465038954,-500.0,0.000263,2]
[340073096,1728465038964,-500.0,0.000263,2]
[340073097,1728465038973,-500.0,0.000263,2]
[340073098,1728465038982,-500.0,0.000263,2]
[340073099,1728465038992,-500.0,0.000263,2]
[340073100,1728465039001,-500.0,0.000263,2]
[340073101,1728465039010,-500.0,0.000263,2]
[340073102,1728465039020,-500.0,0.000263,2]
[340073103,1728465039030,-500.0,0.000263,2]
[340073104,1728465039039,-500.0,0.000263,2]
[340073105,1728465039053,-500.0,0.000263,2]
[340073106,1728465039063,-151.0,0.00026383,2]
[340073107,1728465039072,-21352.35692905,0.00026575,2]
[340073108,1728465039081,-296.12,0.00026607,2]
[340073109,1728465039091,-167.00983941,0.00027494,2]
[340073110,1728465039105,-136819.8798,0.00027524,2]
[340073111,1728465039114,-325.06048735,0.00027809,2]
[340073112,1728465039124,-1000.0,0.00027909,2]
[340073113,1728465039134,-213.78,0.00027925,2]
[340073114,1728465039143,-13159.94676011,0.00028056,2]
[340073115,1728465039153,-213.78,0.00028064,2]
[340073116,1728465039162,-164.15,0.00028178,2]
[340073117,1728465039172,-259.84,0.00028348,2]
[340073118,1728465039181,-296.12,0.0002887,2]
[340073119,1728465039190,-9826.07194462,0.00028999,2]
[340073120,1728465039200,-3000.0,0.00029,2]
[340073121,1728465039210,-150.0,0.00029047,7]
[340073122,1728465039219,-180.72,0.00029081,2]
[340073123,1728465039229,-263.09,0.00029315,2]
[340073124,1728465039239,-305.74,0.00029315,2]
[340073125,1728465039249,-152.64,0.00029315,2]
[340073126,1728465039258,-150.0,0.00029315,2]
[340073127,1728465039267,-150.0,0.00029315,2]
[340073128,1728465039276,-429.25,0.00029315,2]
[340073129,1728465039285,-150.0,0.00029315,2]
[340073130,1728465039295,-150.0,0.00029315,2]
[340073131,1728465039304,-429.25,0.00029315,2]
[340073132,1728465039314,-429.25,0.00029315,2]
[340073133,1728465039324,-150.0,0.00029315,2]
[340073134,1728465039333,-150.0,0.00029315,2]
[340073135,1728465039343,-150.0,0.00029315,2]
[340073136,1728465039354,-429.25,0.00029315,2]
[340073137,1728465039363,-150.0,0.00029315,2]
[340073138,1728465039373,-1206.9122061,0.0003,2]
[340073139,1728465039383,-10000.0,0.0003,5]
[340073140,1728465039393,-177.0,0.0003,2]
[340073141,1728465039402,-361.47,0.00030137,2]
[340073142,1728465039412,-429.25,0.00030137,2]
[340073143,1728465039421,-429.25,0.00030137,2]
[340073144,1728465039431,-429.25,0.00030137,2]
[340073145,1728465039440,-429.25,0.00030137,2]
[340073146,1728465039450,-429.25,0.00030137,2]
[340073147,1728465039460,-429.25,0.00030137,2]
[340073148,1728465039469,-211.84,0.00030137,2]
[340073149,1728465039478,-167.00983941,0.0003028,15]
[340073150,1728465039488,-325.06048735,0.00030679,2]
[340073151,1728465039497,-1000.0,0.0003101,2]
[340073152,1728465039507,-296.12,0.00031134,2]
[340073153,1728465039517,-593.96,0.00031303,10]
[340073154,1728465039529,-500.0,0.00031313,2]
[340073155,1728465039539,-500.0,0.00031313,2]
[340073156,1728465039548,-500.0,0.00031313,2]
[340073157,1728465039558,-500.0,0.00031313,2]
[340073158,1728465039567,-500.0,0.00031313,2]
[340073159,1728465039576,-500.0,0.00031313,2]
[340073160,1728465039586,-500.0,0.00031313,2]
[340073161,1728465039595,-500.0,0.00031313,2]
[340073162,1728465039604,-500.0,0.00031313,2]
[340073163,1728465039614,-7500.0,0.00031399,2]
[340073164,1728465039624,-1058.61605912,0.00031467,3]
[340073165,1728465039633,-203.46689655,0.00031497,14]
[340073166,1728465039643,-49445.65904055,0.00031499,2]
[340073168,1728465040299,-1000.0,0.00031499,2]
[340073221,1728466124710,254.30523043,0.000107,2]
[340073249,1728466232313,-313.45570478,0.00021317,2]
[340073250,1728466232376,-86.54429522,0.00021317,2]
[340073251,1728466232385,-250.0,0.00021317,2]
[340073252,1728466232394,-23.95727365,0.00021317,2]
[340073253,1728466232406,-226.04272635,0.00021317,2]
[340073254,1728466232415,-952.89814706,0.00021317,2]
[340073255,1728466232427,-943.51185294,0.00021317,2]
[340073256,1728466232436,-309.19068777,0.000215,3]
[340073257,1728466232496,-1207.80931223,0.000215,3]
[340073258,1728466232505,-300.0,0.00022379,2]
[340073259,1728466232515,-164.17129021,0.0002238,2]
[340073260,1728466232527,-260.36775229,0.0002238,2]
[340073280,1728466240723,-1356.18398952,0.0002238,2]
[340073281,1728466240737,-18743.81601048,0.0002238,2]
[340073282,1728466240749,-1220.0000005,0.0002238,2]
[340073283,1728466240761,-6100.5,0.0002238,2]
[340073286,1728466243494,-2927.37522779,0.0002238,2]
[340073287,1728466243609,-503.19150413,0.0002238,2]
[340073316,1728466558650,250.0,0.00011,2]
[340073317,1728466559738,300.0,0.00013,2]
[340073319,1728466947314,-2907.43,0.00015802,2]
[340073320,1728466947344,-2302.3682,0.00015902,2]
[340073321,1728466947372,-3929.19844283,0.00015902,2]
[340073330,1728467431512,-1000.0,0.00016002,10]
[340073331,1728467431521,-267.0,0.00019201,2]
[340073332,1728467431534,-635.392072,0.00019201,2]
[340073333,1728467431543,-1964.607928,0.00019729,2]
[340073334,1728467431623,-571.52115498,0.00019729,2]
[340073335,1728467431634,-408.48048678,0.00019729,2]
[340073336,1728467431645,-420.6281509,0.00019729,2]
[340073337,1728467431654,-376.26601213,0.000198,2]
[340073338,1728467431715,-123.73398787,0.000198,2]
[340073339,1728467431724,-503.60158482,0.000198,2]
[340073340,1728467431733,-227.48689619,0.0002117,2]
[340073341,1728467431747,-272.51310381,0.0002117,2]
[340073342,1728467431757,-400.0,0.00021317,2]
[340073344,1728467431767,-511.16418404,0.00021663,2]
[340073352,1728467437862,-303.16003,0.00021663,2]
[340073353,1728467437876,-75.91578596,0.00021663,2]
[340073354,1728467437887,-239.08421404,0.0002238,2]
[340073355,1728467437901,-5122.09125378,0.0002238,2]
[340073356,1728467437913,-400.0,0.00023981,2]
[340073357,1728467437922,-2819.0,0.00026,2]
[340073358,1728467437933,-161.12523231,0.00026383,2]
[340073359,1728467437947,-400.0,0.00026646,2]
[340073360,1728467437958,-600.0,0.00027068,2]
[340073361,1728467437968,-180.72,0.00027191,2]
[340073362,1728467437979,-222.09,0.00027319,2]
[340073363,1728467437990,-169.58,0.00027548,30]
[340073364,1728467438000,-237.26,0.00027781,2]
[340073365,1728467438009,-250.0,0.00027906,2]
[340073366,1728467438019,-209.58,0.00028752,2]
[340073367,1728467438029,-2819.25991879,0.000288,2]
[340073368,1728467438040,-2495.0,0.00028807,2]
[340073369,1728467438050,-2870.36,0.00028837,2]
[340073370,1728467438060,-375.03,0.00029179,2]
[340073371,1728467438071,-400.0,0.0002931,2]
[340073372,1728467438081,-222.09,0.00029583,2]
[340073373,1728467438090,-9642.38974777,0.000299,2]
[340073374,1728467438113,-381.83997,0.000299,2]
[340073392,1728467439597,-7496.27935465,0.000299,2]
[340073393,1728467439607,-7000.0,0.0003,7]
[340073394,1728467439617,-8000.0,0.0003,7]
[340073395,1728467439627,-600.0,0.00030451,2]
[340073396,1728467439637,-5814.2934,0.00031399,2]
[340073397,1728467439648,-2005.4586,0.00031399,2]
[340073398,1728467439658,-4174.0757,0.00031399,2]
[340073399,1728467439668,-289.51899624,0.00031498,2]
[340073400,1728467439678,-1514.29323284,0.00031498,2]
[340073401,1728467439688,-5990.4525378,0.00031498,2]
[340073402,1728467439697,-177.0,0.00031499,2]
[340073403,1728467439707,-118199.4008366,0.00031499,2]
[340073404,1728467439717,-703.91614098,0.000318,15]
[340073405,1728467439726,-222.09,0.00031847,2]
[340073406,1728467439736,-400.0,0.00031975,2]
[340073407,1728467439746,-34563.0354,0.00032095,2]
[340073408,1728467439756,-151.0,0.00032095,7]
[340073409,1728467439766,-151.0,0.00032095,7]
[340073410,1728467439775,-151.0,0.00032095,7]
[340073411,1728467439785,-211.356286,0.00032095,7]
[340073412,1728467439795,-151.0,0.00032095,7]
[340073413,1728467439804,-151.0,0.00032095,7]
[340073414,1728467439814,-151.0,0.00032095,7]
[340073415,1728467439824,-151.0,0.00032095,7]
[340073416,1728467439833,-2000.0,0.00032151,2]
[340073417,1728467439843,-2000.0,0.00032151,2]
[340073418,1728467439852,-7500.0,0.00032202,2]
[340073419,1728467439862,-988.04165516,0.00032202,4]
[340073420,1728467439872,-380.34105339,0.00032301,2]
[340073421,1728467439881,-347.67560428,0.00032301,2]
[340073422,1728467439891,-343.31209619,0.00032301,2]
[340073423,1728467439901,-500.0,0.00032301,2]
[340073424,1728467439911,-500.0,0.00032301,2]
[340073425,1728467439920,-427.40264882,0.00032301,2]
[340073426,1728467439930,-151.0,0.00032302,7]
[340073427,1728467439940,-151.0,0.00032302,7]
[340073428,1728467439950,-155.985132,0.00032302,7]
[340073429,1728467439959,-151.0,0.00032302,7]
[340073430,1728467439969,-151.0,0.00032302,7]
[340073432,1728467439978,-151.0,0.00032302,7]
[340073434,1728467439987,-151.0,0.00032302,7]
[340073436,1728467439997,-151.0,0.00032302,7]
[340073437,1728467440007,-163.901432,0.00032302,7]
[340073438,1728467440016,-221605.74156897,0.00032302,2]
[340073439,1728467440028,-34133.88466904,0.00032302,2]
[340073440,1728467440040,-43336.23478404,0.00032302,2]
[340073441,1728467440050,-571.50688187,0.00032302,2]
[340073442,1728467440059,-360.58319999,0.00032302,120]
[340073443,1728467440069,-6884.55231249,0.00032302,3]
[340073444,1728467440079,-8834.78632496,0.00032302,30]
[340073445,1728467440088,-153.88256547,0.00032302,2]
[340073446,1728467440098,-383.22960183,0.00032302,120]
[340073447,1728467440107,-242.0,0.00032302,120]
[340073448,1728467440117,-212.35167023,0.00032302,120]
[340073449,1728467440127,-199.23895736,0.00032302,30]
[340073450,1728467440136,-416.4501,0.00032302,30]
[340073451,1728467440146,-249.79595567,0.00032302,60]
[340073452,1728467440155,-1000.0,0.00032302,2]
[340073453,1728467440165,-1000.0,0.00032302,2]